[Event "Titled Tuesday Blitz January 04 2022"]
[White "Harshavardhan G B"]
[Black "Artemenko, Oleg"]
[WhiteFideId "25059009"]
[BlackFideId "14201798"]
[WhiteElo "1831"]
[BlackElo "2287"]
[Result "0-1"]
[Round "11"]
[TimeControl "180+1"]
[Date "2022.01.04"]
[WhiteClock "0:01:11"]
[BlackClock "0:00:38"]

1. d4 {[%clk 0:02:52]}  Nf6 {[%clk 0:02:53]} 2. Nf3 {[%clk 0:02:50]}  e6 {[%clk 0:02:53]} 3. c4 {[%clk 0:02:48]}  Bb4+ {[%clk 0:02:53]} 4. Nc3 {[%clk 0:02:45]}  O-O {[%clk 0:02:52]} 5. g3 {[%clk 0:02:44]}  d5 {[%clk 0:02:52]} 6. Bg2 {[%clk 0:02:43]}  c5 {[%clk 0:02:51]} 7. O-O {[%clk 0:02:43]}  cxd4 {[%clk 0:02:41]} 8. Nxd4 {[%clk 0:02:40]}  dxc4 {[%clk 0:02:41]} 9. Be3 {[%clk 0:02:36]}  e5 {[%clk 0:02:32]} 10. Nc2 {[%clk 0:02:34]}  Bxc3 {[%clk 0:02:18]} 11. bxc3 {[%clk 0:02:35]}  Nbd7 {[%clk 0:02:18]} 12. Na3 {[%clk 0:02:27]}  Qc7 {[%clk 0:02:13]} 13. Nb5 {[%clk 0:02:20]}  Qa5 {[%clk 0:02:13]} 14. a4 {[%clk 0:02:18]}  Rd8 {[%clk 0:02:07]} 15. Nd6 {[%clk 0:01:59]}  Qc7 {[%clk 0:01:43]} 16. Nb5 {[%clk 0:01:57]}  Qa5 {[%clk 0:01:43]} 17. Qd6 {[%clk 0:01:56]}  a6 {[%clk 0:01:02]} 18. Nc7 {[%clk 0:01:53]}  Ne8 {[%clk 0:01:01]} 19. Nxe8 {[%clk 0:01:51]}  Rxe8 {[%clk 0:01:02]} 20. Rfd1 {[%clk 0:01:36]}  Nf6 {[%clk 0:00:57]} 21. Rab1 {[%clk 0:01:23]}  Bf5 {[%clk 0:00:50]} 22. Rxb7 {[%clk 0:01:21]}  Rad8 {[%clk 0:00:43]} 23. Qxd8 {[%clk 0:01:09]}  Rxd8 {[%clk 0:00:42]} 24. Rxd8+ {[%clk 0:01:10]}  Qxd8 {[%clk 0:00:42]} 25. Ba7 {[%clk 0:01:11]}  Qd1+ {[%clk 0:00:41]} 26. Bf1 {[%clk 0:01:11]}  h6 {[%clk 0:00:38]} 27. Kg2 {[%clk 0:01:11]}  Be4+ {[%clk 0:00:38]} 0-1


[Site "https://www.chess.com"]

[Event "Titled Tuesday Blitz January 04 2022"]
[White "Ibarra Jerez, Jose Carlos"]
[Black "Tregubov, Pavel V."]
[WhiteFideId "2226332"]
[BlackFideId "4115341"]
[WhiteElo "2626"]
[BlackElo "2341"]
[Result "1/2-1/2"]
[Round "11"]
[TimeControl "180+1"]
[Date "2022.01.04"]
[WhiteClock "0:00:09"]
[BlackClock "0:00:15"]

1. g4 {[%clk 0:03:00]}  d5 {[%clk 0:02:59]} 2. h3 {[%clk 0:02:52]}  c5 {[%clk 0:02:56]} 3. Bg2 {[%clk 0:02:52]}  Nc6 {[%clk 0:02:56]} 4. d3 {[%clk 0:02:53]}  h6 {[%clk 0:02:53]} 5. Nc3 {[%clk 0:02:49]}  Nf6 {[%clk 0:02:52]} 6. e4 {[%clk 0:02:29]}  dxe4 {[%clk 0:02:47]} 7. Nxe4 {[%clk 0:02:28]}  Nxe4 {[%clk 0:02:37]} 8. dxe4 {[%clk 0:02:26]}  Qxd1+ {[%clk 0:02:36]} 9. Kxd1 {[%clk 0:02:27]}  e5 {[%clk 0:02:34]} 10. c3 {[%clk 0:02:25]}  Be6 {[%clk 0:02:33]} 11. Kc2 {[%clk 0:02:23]}  O-O-O {[%clk 0:02:21]} 12. Nf3 {[%clk 0:02:20]}  Bc4 {[%clk 0:02:15]} 13. Bf1 {[%clk 0:02:19]}  Bxf1 {[%clk 0:02:10]} 14. Rxf1 {[%clk 0:02:20]}  f6 {[%clk 0:02:06]} 15. Nh4 {[%clk 0:02:12]}  Ne7 {[%clk 0:02:04]} 16. Be3 {[%clk 0:02:10]}  g5 {[%clk 0:02:04]} 17. Nf5 {[%clk 0:02:07]}  Nxf5 {[%clk 0:02:04]} 18. gxf5 {[%clk 0:02:06]}  Kc7 {[%clk 0:02:03]} 19. c4 {[%clk 0:02:04]}  Kc6 {[%clk 0:01:59]} 20. Rad1 {[%clk 0:02:03]}  Rxd1 {[%clk 0:01:59]} 21. Rxd1 {[%clk 0:02:04]}  Bd6 {[%clk 0:02:00]} 22. f3 {[%clk 0:01:59]}  h5 {[%clk 0:01:58]} 23. h4 {[%clk 0:01:42]}  g4 {[%clk 0:01:48]} 24. Rg1 {[%clk 0:01:39]}  gxf3 {[%clk 0:01:43]} 25. Rg7 {[%clk 0:01:23]}  Rf8 {[%clk 0:01:00]} 26. Kd2 {[%clk 0:01:16]}  b5 {[%clk 0:01:00]} 27. cxb5+ {[%clk 0:00:51]}  Kxb5 {[%clk 0:01:00]} 28. Rxa7 {[%clk 0:00:43]}  Rg8 {[%clk 0:00:58]} 29. a4+ {[%clk 0:00:22]}  Kc4 {[%clk 0:00:54]} 30. Bf2 {[%clk 0:00:23]}  Rb8 {[%clk 0:00:49]} 31. Kc2 {[%clk 0:00:18]}  Bf8 {[%clk 0:00:36]} 32. Ra6 {[%clk 0:00:13]}  Bg7 {[%clk 0:00:34]} 33. Rc6 {[%clk 0:00:13]}  Bf8 {[%clk 0:00:29]} 34. Rc7 {[%clk 0:00:11]}  Kb4 {[%clk 0:00:20]} 35. b3 {[%clk 0:00:10]}  Ka3 {[%clk 0:00:19]} 36. Rf7 {[%clk 0:00:08]}  Bd6 {[%clk 0:00:18]} 37. Rxf6 {[%clk 0:00:08]}  Be7 {[%clk 0:00:17]} 38. Re6 {[%clk 0:00:09]}  Rxb3 {[%clk 0:00:15]} 39. Rxe7 {[%clk 0:00:08]}  Rb2+ {[%clk 0:00:16]} 40. Kd3 {[%clk 0:00:09]}  Rxf2 {[%clk 0:00:16]} 41. Ke3 {[%clk 0:00:09]}  Rf1 {[%clk 0:00:15]} 42. f6 {[%clk 0:00:09]}  Re1+ {[%clk 0:00:14]} 43. Kf2 {[%clk 0:00:08]}  Rxe4 {[%clk 0:00:15]} 44. Kxf3 {[%clk 0:00:06]}  Rf4+ {[%clk 0:00:15]} 45. Kg3 {[%clk 0:00:06]}  Rxf6 {[%clk 0:00:15]} 46. Rxe5 {[%clk 0:00:07]}  Rc6 {[%clk 0:00:15]} 47. Rxh5 {[%clk 0:00:05]}  c4 {[%clk 0:00:16]} 48. Rf5 {[%clk 0:00:04]}  c3 {[%clk 0:00:16]} 49. Rf1 {[%clk 0:00:03]}  c2 {[%clk 0:00:17]} 50. Kg4 {[%clk 0:00:03]}  Kb2 {[%clk 0:00:13]} 51. h5 {[%clk 0:00:02]}  c1=Q {[%clk 0:00:13]} 52. Rxc1 {[%clk 0:00:03]}  Kxc1 {[%clk 0:00:12]} 53. Kg5 {[%clk 0:00:03]}  Kb2 {[%clk 0:00:13]} 54. h6 {[%clk 0:00:04]}  Ka3 {[%clk 0:00:12]} 55. h7 {[%clk 0:00:05]}  Rc8 {[%clk 0:00:12]} 56. a5 {[%clk 0:00:05]}  Kb4 {[%clk 0:00:13]} 57. a6 {[%clk 0:00:06]}  Kb5 {[%clk 0:00:13]} 58. a7 {[%clk 0:00:07]}  Kb6 {[%clk 0:00:14]} 59. Kg6 {[%clk 0:00:07]}  Kxa7 {[%clk 0:00:14]} 60. Kg7 {[%clk 0:00:07]}  Rc7+ {[%clk 0:00:14]} 61. Kg6 {[%clk 0:00:08]}  Rc8 {[%clk 0:00:14]} 62. Kg7 {[%clk 0:00:08]}  Rc7+ {[%clk 0:00:15]} 63. Kg6 {[%clk 0:00:08]}  Rxh7 {[%clk 0:00:15]} 64. Kxh7 {[%clk 0:00:09]} 1/2-1/2


[Site "https://www.chess.com"]

[Event "Titled Tuesday Blitz January 04 2022"]
[White "Karttunen, Mika"]
[Black "Kosakowski, Jakub"]
[WhiteFideId "502081"]
[BlackFideId "1185080"]
[WhiteElo "2343"]
[BlackElo "2476"]
[Result "0-1"]
[Round "11"]
[TimeControl "180+1"]
[Date "2022.01.04"]
[WhiteClock "0:00:03"]
[BlackClock "0:00:19"]

1. e4 {[%clk 0:03:00]}  c6 {[%clk 0:02:57]} 2. d4 {[%clk 0:03:00]}  d5 {[%clk 0:02:58]} 3. exd5 {[%clk 0:03:00]}  cxd5 {[%clk 0:02:58]} 4. Bd3 {[%clk 0:03:00]}  Nc6 {[%clk 0:02:58]} 5. c3 {[%clk 0:03:00]}  Qc7 {[%clk 0:02:59]} 6. h3 {[%clk 0:02:59]}  e5 {[%clk 0:02:53]} 7. dxe5 {[%clk 0:02:56]}  Nxe5 {[%clk 0:02:54]} 8. Nf3 {[%clk 0:02:45]}  Nxd3+ {[%clk 0:02:47]} 9. Qxd3 {[%clk 0:02:45]}  Nf6 {[%clk 0:02:48]} 10. O-O {[%clk 0:02:43]}  Be7 {[%clk 0:02:48]} 11. Be3 {[%clk 0:02:34]}  O-O {[%clk 0:02:46]} 12. Nbd2 {[%clk 0:02:34]}  Be6 {[%clk 0:02:44]} 13. Bd4 {[%clk 0:02:27]}  h6 {[%clk 0:02:44]} 14. Rfe1 {[%clk 0:02:27]}  Rfe8 {[%clk 0:02:43]} 15. Be5 {[%clk 0:02:24]}  Qb6 {[%clk 0:02:42]} 16. Nb3 {[%clk 0:02:17]}  Ne4 {[%clk 0:02:40]} 17. Bd4 {[%clk 0:02:17]}  Qc7 {[%clk 0:02:39]} 18. Be5 {[%clk 0:02:12]}  Qb6 {[%clk 0:02:36]} 19. Bd4 {[%clk 0:02:11]}  Qc6 {[%clk 0:02:30]} 20. Be3 {[%clk 0:01:54]}  Qc7 {[%clk 0:02:25]} 21. Nfd4 {[%clk 0:01:49]}  Bd7 {[%clk 0:02:17]} 22. Rad1 {[%clk 0:01:39]}  a6 {[%clk 0:02:13]} 23. Ne2 {[%clk 0:01:31]}  Bc6 {[%clk 0:01:47]} 24. Nbd4 {[%clk 0:01:23]}  Ba4 {[%clk 0:01:44]} 25. Rc1 {[%clk 0:01:22]}  Rad8 {[%clk 0:01:43]} 26. Nf5 {[%clk 0:01:19]}  Bf8 {[%clk 0:01:43]} 27. Bf4 {[%clk 0:01:14]}  Qc8 {[%clk 0:01:37]} 28. Ned4 {[%clk 0:01:13]}  Bd7 {[%clk 0:01:26]} 29. Ng3 {[%clk 0:01:07]}  Nc5 {[%clk 0:01:21]} 30. Qf3 {[%clk 0:01:03]}  Ne6 {[%clk 0:01:21]} 31. Be3 {[%clk 0:00:58]}  Qc4 {[%clk 0:01:12]} 32. a3 {[%clk 0:00:54]}  Ng5 {[%clk 0:00:57]} 33. Bxg5 {[%clk 0:00:50]}  hxg5 {[%clk 0:00:58]} 34. Red1 {[%clk 0:00:46]}  g6 {[%clk 0:00:55]} 35. Nf1 {[%clk 0:00:35]}  Bc8 {[%clk 0:00:49]} 36. Ne3 {[%clk 0:00:36]}  Qc5 {[%clk 0:00:48]} 37. Ndc2 {[%clk 0:00:32]}  Be6 {[%clk 0:00:37]} 38. Nb4 {[%clk 0:00:32]}  Qb5 {[%clk 0:00:30]} 39. Nexd5 {[%clk 0:00:30]}  Bg7 {[%clk 0:00:29]} 40. Nf6+ {[%clk 0:00:28]}  Bxf6 {[%clk 0:00:29]} 41. Qxf6 {[%clk 0:00:28]}  Rxd1+ {[%clk 0:00:30]} 42. Rxd1 {[%clk 0:00:28]}  a5 {[%clk 0:00:30]} 43. Nd3 {[%clk 0:00:24]}  Bf5 {[%clk 0:00:28]} 44. Qd4 {[%clk 0:00:12]}  Bxd3 {[%clk 0:00:28]} 45. Rxd3 {[%clk 0:00:09]}  Qxb2 {[%clk 0:00:28]} 46. Re3 {[%clk 0:00:09]}  Rxe3 {[%clk 0:00:26]} 47. fxe3 {[%clk 0:00:09]}  Qxa3 {[%clk 0:00:25]} 48. Qd8+ {[%clk 0:00:09]}  Kg7 {[%clk 0:00:25]} 49. Qd4+ {[%clk 0:00:09]}  Kh7 {[%clk 0:00:26]} 50. Qc4 {[%clk 0:00:09]}  Qe7 {[%clk 0:00:23]} 51. Kf2 {[%clk 0:00:09]}  Kg7 {[%clk 0:00:22]} 52. Qb5 {[%clk 0:00:09]}  Qc7 {[%clk 0:00:17]} 53. c4 {[%clk 0:00:09]}  b6 {[%clk 0:00:18]} 54. Qb2+ {[%clk 0:00:08]}  Kg8 {[%clk 0:00:17]} 55. Qd4 {[%clk 0:00:07]}  Qc5 {[%clk 0:00:17]} 56. Qd8+ {[%clk 0:00:07]}  Kg7 {[%clk 0:00:18]} 57. Qd3 {[%clk 0:00:07]}  Qf5+ {[%clk 0:00:18]} 58. Ke2 {[%clk 0:00:05]}  Qxd3+ {[%clk 0:00:18]} 59. Kxd3 {[%clk 0:00:06]}  Kf6 {[%clk 0:00:18]} 60. Kd4 {[%clk 0:00:06]}  Ke6 {[%clk 0:00:19]} 61. e4 {[%clk 0:00:04]}  f6 {[%clk 0:00:19]} 62. g3 {[%clk 0:00:04]}  Kd6 {[%clk 0:00:19]} 63. g4 {[%clk 0:00:03]}  Ke6 {[%clk 0:00:19]} 0-1


[Site "https://www.chess.com"]

[Event "Titled Tuesday Blitz January 04 2022"]
[White "Kobo, Ori"]
[Black "Pelopidass"]
[WhiteFideId "2812320"]
[WhiteElo "2420"]
[BlackElo "2626"]
[Result "1/2-1/2"]
[Round "11"]
[TimeControl "180+1"]
[Date "2022.01.04"]
[WhiteClock "0:00:10"]
[BlackClock "0:00:19"]

1. e4 {[%clk 0:02:59]}  e6 {[%clk 0:03:00]} 2. d4 {[%clk 0:02:57]}  d5 {[%clk 0:03:00]} 3. Nc3 {[%clk 0:02:50]}  Bb4 {[%clk 0:03:00]} 4. e5 {[%clk 0:02:50]}  c5 {[%clk 0:02:59]} 5. a3 {[%clk 0:02:51]}  Bxc3+ {[%clk 0:02:59]} 6. bxc3 {[%clk 0:02:52]}  Qa5 {[%clk 0:02:59]} 7. Bd2 {[%clk 0:02:50]}  Qa4 {[%clk 0:02:59]} 8. Qg4 {[%clk 0:02:49]}  g6 {[%clk 0:03:00]} 9. Nf3 {[%clk 0:02:46]}  Ne7 {[%clk 0:02:53]} 10. h4 {[%clk 0:02:33]}  h6 {[%clk 0:02:38]} 11. Qf4 {[%clk 0:02:28]}  Qxc2 {[%clk 0:02:33]} 12. dxc5 {[%clk 0:02:22]}  Nbc6 {[%clk 0:02:25]} 13. Bb5 {[%clk 0:02:09]}  Qe4+ {[%clk 0:02:02]} 14. Qxe4 {[%clk 0:02:04]}  dxe4 {[%clk 0:02:03]} 15. Nd4 {[%clk 0:02:05]}  Bd7 {[%clk 0:02:03]} 16. Nxc6 {[%clk 0:01:12]}  Bxc6 {[%clk 0:02:03]} 17. Rb1 {[%clk 0:01:07]}  O-O-O {[%clk 0:02:02]} 18. Be2 {[%clk 0:00:55]}  Rd7 {[%clk 0:01:24]} 19. Rh3 {[%clk 0:00:53]}  e3 {[%clk 0:01:17]} 20. Rxe3 {[%clk 0:00:44]}  Bxg2 {[%clk 0:01:17]} 21. f3 {[%clk 0:00:37]}  Rhd8 {[%clk 0:01:11]} 22. Rb2 {[%clk 0:00:38]}  Bh3 {[%clk 0:01:11]} 23. Bb5 {[%clk 0:00:31]}  Rd5 {[%clk 0:00:57]} 24. c4 {[%clk 0:00:30]}  Rd3 {[%clk 0:00:55]} 25. Ke2 {[%clk 0:00:19]}  Bf1+ {[%clk 0:00:43]} 26. Ke1 {[%clk 0:00:16]}  Bg2 {[%clk 0:00:35]} 27. Ke2 {[%clk 0:00:12]}  Bf1+ {[%clk 0:00:27]} 28. Ke1 {[%clk 0:00:13]}  Bg2 {[%clk 0:00:27]} 29. Ke2 {[%clk 0:00:10]}  Bf1+ {[%clk 0:00:19]} 1/2-1/2


[Site "https://www.chess.com"]

[Event "Titled Tuesday Blitz January 04 2022"]
[White "Liyanage, Ranindu Dilshan"]
[Black "Costachi, Mihnea"]
[WhiteFideId "9915834"]
[BlackFideId "1217518"]
[WhiteElo "1858"]
[BlackElo "2464"]
[Result "0-1"]
[Round "11"]
[TimeControl "180+1"]
[Date "2022.01.04"]
[WhiteClock "0:00:02"]
[BlackClock "0:00:10"]

1. e4 {[%clk 0:03:00]}  c5 {[%clk 0:03:00]} 2. Nf3 {[%clk 0:03:01]}  d6 {[%clk 0:03:00]} 3. d4 {[%clk 0:03:02]}  cxd4 {[%clk 0:03:01]} 4. Nxd4 {[%clk 0:03:02]}  Nf6 {[%clk 0:03:02]} 5. Nc3 {[%clk 0:03:03]}  Nc6 {[%clk 0:03:02]} 6. Bg5 {[%clk 0:03:03]}  e6 {[%clk 0:03:02]} 7. Qd3 {[%clk 0:03:03]}  Be7 {[%clk 0:03:00]} 8. O-O-O {[%clk 0:03:03]}  Bd7 {[%clk 0:03:01]} 9. h4 {[%clk 0:02:56]}  a6 {[%clk 0:02:58]} 10. Be2 {[%clk 0:02:48]}  b5 {[%clk 0:02:56]} 11. a3 {[%clk 0:02:41]}  b4 {[%clk 0:02:53]} 12. Nxc6 {[%clk 0:02:37]}  Bxc6 {[%clk 0:02:52]} 13. axb4 {[%clk 0:02:38]}  Qb6 {[%clk 0:02:42]} 14. Qd4 {[%clk 0:02:34]}  Rb8 {[%clk 0:02:40]} 15. Qxb6 {[%clk 0:02:05]}  Rxb6 {[%clk 0:02:41]} 16. Rd4 {[%clk 0:02:01]}  O-O {[%clk 0:02:19]} 17. Bxf6 {[%clk 0:01:51]}  gxf6 {[%clk 0:02:15]} 18. f3 {[%clk 0:01:46]}  Rfb8 {[%clk 0:01:51]} 19. Rhd1 {[%clk 0:01:41]}  Kf8 {[%clk 0:01:31]} 20. Na2 {[%clk 0:01:25]}  Bd7 {[%clk 0:01:26]} 21. c3 {[%clk 0:01:08]}  f5 {[%clk 0:01:24]} 22. exf5 {[%clk 0:01:06]}  e5 {[%clk 0:01:25]} 23. R4d2 {[%clk 0:01:05]}  Bxf5 {[%clk 0:01:22]} 24. g3 {[%clk 0:00:58]}  Be6 {[%clk 0:01:07]} 25. Kb1 {[%clk 0:00:51]}  d5 {[%clk 0:01:08]} 26. Bd3 {[%clk 0:00:34]}  h5 {[%clk 0:01:05]} 27. Re1 {[%clk 0:00:33]}  Bd6 {[%clk 0:00:57]} 28. Rde2 {[%clk 0:00:31]}  Kg7 {[%clk 0:00:53]} 29. Bc2 {[%clk 0:00:31]}  f6 {[%clk 0:00:51]} 30. Bb3 {[%clk 0:00:29]}  a5 {[%clk 0:00:48]} 31. Rd1 {[%clk 0:00:26]}  axb4 {[%clk 0:00:48]} 32. Bxd5 {[%clk 0:00:25]}  Bxd5 {[%clk 0:00:43]} 33. Rxd5 {[%clk 0:00:26]}  bxc3 {[%clk 0:00:43]} 34. Nxc3 {[%clk 0:00:25]}  Ba3 {[%clk 0:00:44]} 35. Rd7+ {[%clk 0:00:22]}  Kg6 {[%clk 0:00:44]} 36. Rdd2 {[%clk 0:00:22]}  Rb3 {[%clk 0:00:42]} 37. Rc2 {[%clk 0:00:14]}  Bf8 {[%clk 0:00:37]} 38. Rf2 {[%clk 0:00:12]}  Bc5 {[%clk 0:00:35]} 39. Rfe2 {[%clk 0:00:12]}  Bd4 {[%clk 0:00:36]} 40. Kc1 {[%clk 0:00:10]}  Ra8 {[%clk 0:00:32]} 41. Kd2 {[%clk 0:00:10]}  Ra1 {[%clk 0:00:29]} 42. Re1 {[%clk 0:00:05]}  Ra8 {[%clk 0:00:28]} 43. Re2 {[%clk 0:00:05]}  Rd8 {[%clk 0:00:26]} 44. Kc1 {[%clk 0:00:05]}  Ba7 {[%clk 0:00:22]} 45. Red2 {[%clk 0:00:04]}  Be3 {[%clk 0:00:22]} 46. Nd1 {[%clk 0:00:03]}  Bxd2+ {[%clk 0:00:20]} 47. Rxd2 {[%clk 0:00:04]}  Rxd2 {[%clk 0:00:20]} 48. Kxd2 {[%clk 0:00:04]}  Rxf3 {[%clk 0:00:21]} 49. Kc2 {[%clk 0:00:04]}  Rxg3 {[%clk 0:00:21]} 50. b4 {[%clk 0:00:05]}  Kf5 {[%clk 0:00:18]} 51. b5 {[%clk 0:00:04]}  Ke6 {[%clk 0:00:18]} 52. Nc3 {[%clk 0:00:05]}  Rg8 {[%clk 0:00:17]} 53. Kd3 {[%clk 0:00:04]}  f5 {[%clk 0:00:17]} 54. Kc4 {[%clk 0:00:05]}  f4 {[%clk 0:00:17]} 55. Kd3 {[%clk 0:00:05]}  Kf5 {[%clk 0:00:17]} 56. b6 {[%clk 0:00:05]}  e4+ {[%clk 0:00:16]} 57. Ke2 {[%clk 0:00:03]}  f3+ {[%clk 0:00:16]} 58. Ke3 {[%clk 0:00:03]}  Rd8 {[%clk 0:00:10]} 59. b7 {[%clk 0:00:02]}  Rb8 {[%clk 0:00:09]} 60. Nxe4 {[%clk 0:00:02]}  f2 {[%clk 0:00:08]} 61. Nxf2 {[%clk 0:00:01]}  Rxb7 {[%clk 0:00:09]} 62. Kf3 {[%clk 0:00:02]}  Rb3+ {[%clk 0:00:09]} 63. Kg2 {[%clk 0:00:02]}  Kf4 {[%clk 0:00:09]} 64. Nh3+ {[%clk 0:00:01]}  Kg4 {[%clk 0:00:09]} 65. Nf2+ {[%clk 0:00:02]}  Kxh4 {[%clk 0:00:10]} 0-1


[Site "https://www.chess.com"]

[Event "Titled Tuesday Blitz January 04 2022"]
[White "Manukyan, Artyom"]
[Black "Aitbayev, Aslan"]
[WhiteFideId "13305786"]
[BlackFideId "13704613"]
[WhiteElo "2034"]
[BlackElo "2385"]
[Result "0-1"]
[Round "11"]
[TimeControl "180+1"]
[Date "2022.01.04"]
[WhiteClock "0:00:04"]
[BlackClock "0:00:13"]

1. e4 {[%clk 0:03:00]}  d6 {[%clk 0:02:57]} 2. d4 {[%clk 0:03:00]}  Nf6 {[%clk 0:02:57]} 3. Nc3 {[%clk 0:03:00]}  g6 {[%clk 0:02:57]} 4. f4 {[%clk 0:03:01]}  Bg7 {[%clk 0:02:57]} 5. Nf3 {[%clk 0:03:01]}  O-O {[%clk 0:02:58]} 6. Bd3 {[%clk 0:03:02]}  Nc6 {[%clk 0:02:58]} 7. O-O {[%clk 0:02:57]}  e5 {[%clk 0:02:58]} 8. fxe5 {[%clk 0:02:53]}  dxe5 {[%clk 0:02:57]} 9. d5 {[%clk 0:02:54]}  Ne7 {[%clk 0:02:58]} 10. Nxe5 {[%clk 0:02:52]}  c6 {[%clk 0:02:58]} 11. Bg5 {[%clk 0:02:52]}  cxd5 {[%clk 0:02:58]} 12. Bxf6 {[%clk 0:02:50]}  Qb6+ {[%clk 0:02:57]} 13. Kh1 {[%clk 0:02:51]}  Bxf6 {[%clk 0:02:58]} 14. Nxd5 {[%clk 0:02:52]}  Nxd5 {[%clk 0:02:53]} 15. Nc4 {[%clk 0:02:52]}  Qc5 {[%clk 0:02:23]} 16. exd5 {[%clk 0:02:50]}  Bg7 {[%clk 0:02:24]} 17. Qf3 {[%clk 0:02:43]}  b5 {[%clk 0:02:15]} 18. Ne3 {[%clk 0:02:37]}  Bxb2 {[%clk 0:02:10]} 19. Rab1 {[%clk 0:02:36]}  Bd4 {[%clk 0:02:04]} 20. Rxb5 {[%clk 0:02:34]}  Qc3 {[%clk 0:02:01]} 21. Rb3 {[%clk 0:02:21]}  Qc5 {[%clk 0:01:59]} 22. Nd1 {[%clk 0:01:23]}  Bd7 {[%clk 0:01:52]} 23. Rb7 {[%clk 0:01:21]}  Rad8 {[%clk 0:01:49]} 24. c4 {[%clk 0:01:17]}  Qa3 {[%clk 0:01:32]} 25. Qe4 {[%clk 0:00:47]}  Bc5 {[%clk 0:01:24]} 26. Bb1 {[%clk 0:00:42]}  Rde8 {[%clk 0:01:05]} 27. Qf4 {[%clk 0:00:37]}  Re7 {[%clk 0:00:57]} 28. Rb3 {[%clk 0:00:27]}  Qa6 {[%clk 0:00:49]} 29. Nc3 {[%clk 0:00:22]}  f5 {[%clk 0:00:39]} 30. Nb5 {[%clk 0:00:18]}  Bxb5 {[%clk 0:00:30]} 31. Rxb5 {[%clk 0:00:17]}  Bd6 {[%clk 0:00:30]} 32. Qf3 {[%clk 0:00:16]}  Rfe8 {[%clk 0:00:27]} 33. Qd3 {[%clk 0:00:09]}  Re3 {[%clk 0:00:24]} 34. Qc2 {[%clk 0:00:06]}  Re1 {[%clk 0:00:23]} 35. Qd3 {[%clk 0:00:06]}  Qa3 {[%clk 0:00:19]} 36. c5 {[%clk 0:00:04]}  Bxc5 {[%clk 0:00:15]} 37. Rb3 {[%clk 0:00:04]}  Qc1 {[%clk 0:00:13]} 0-1


[Site "https://www.chess.com"]

[Event "Titled Tuesday Blitz January 04 2022"]
[White "Nesterov, Arseniy"]
[Black "Seo, Jung Min"]
[WhiteFideId "24198455"]
[BlackFideId "1734687"]
[WhiteElo "2489"]
[BlackElo "2401"]
[Result "1-0"]
[Round "11"]
[TimeControl "180+1"]
[Date "2022.01.04"]
[WhiteClock "0:01:50"]
[BlackClock "0:01:58"]

1. d4 {[%clk 0:03:00]}  Nf6 {[%clk 0:02:59]} 2. c4 {[%clk 0:03:01]}  e6 {[%clk 0:02:59]} 3. Nf3 {[%clk 0:02:58]}  d5 {[%clk 0:02:59]} 4. Nc3 {[%clk 0:02:58]}  Nbd7 {[%clk 0:02:58]} 5. Bg5 {[%clk 0:02:54]}  Be7 {[%clk 0:02:55]} 6. e3 {[%clk 0:02:55]}  Ne4 {[%clk 0:02:51]} 7. Bxe7 {[%clk 0:02:51]}  Qxe7 {[%clk 0:02:51]} 8. Rc1 {[%clk 0:02:37]}  Nxc3 {[%clk 0:02:50]} 9. Rxc3 {[%clk 0:02:38]}  c6 {[%clk 0:02:50]} 10. Bd3 {[%clk 0:02:38]}  dxc4 {[%clk 0:02:47]} 11. Rxc4 {[%clk 0:02:20]}  O-O {[%clk 0:02:43]} 12. O-O {[%clk 0:02:20]}  e5 {[%clk 0:02:34]} 13. Bb1 {[%clk 0:02:06]}  exd4 {[%clk 0:02:30]} 14. Rxd4 {[%clk 0:02:07]}  Nf6 {[%clk 0:02:29]} 15. Qd3 {[%clk 0:01:58]}  Be6 {[%clk 0:02:19]} 16. e4 {[%clk 0:01:53]}  Rfd8 {[%clk 0:02:17]} 17. e5 {[%clk 0:01:49]}  Rxd4 {[%clk 0:01:58]} 18. Nxd4 {[%clk 0:01:50]} 1-0


[Site "https://www.chess.com"]